[Event "January 9 Early 2024"]
[Site "https://www.chess.com"]
[Date "2024.01.11"]
[Round "1"]
[White "Perez Gormaz, Matias"]
[Black "Bregu, Riza"]
[Result "0-1"]
[Board "273"]
[TimeControl "180+1"]
[WhiteFideId "3406342"]
[BlackFideId "4701739"]
[WhiteElo "2686"]
[BlackElo "2385"]
[WhiteTeam "CHI"]
[BlackTeam "ALB"]
[WhiteClock "0:00:03"]
[BlackClock "0:00:14"]

1. d4 {[%clk 0:03:00]}  d5 {[%clk 0:02:59]} 2. Bf4 {[%clk 0:03:00]}  e6 {[%clk 0:02:58]} 3. e3 {[%clk 0:03:00]}  Bd6 {[%clk 0:02:58]} 4. Bg3 {[%clk 0:03:01]}  Nf6 {[%clk 0:02:57]} 5. Nf3 {[%clk 0:03:01]}  Ne4 {[%clk 0:02:57]} 6. Nbd2 {[%clk 0:03:01]}  f5 {[%clk 0:02:57]} 7. c4 {[%clk 0:03:00]}  c6 {[%clk 0:02:57]} 8. Qb3 {[%clk 0:02:58]}  O-O {[%clk 0:02:57]} 9. Bd3 {[%clk 0:02:57]}  a5 {[%clk 0:02:43]} 10. a3 {[%clk 0:02:50]}  a4 {[%clk 0:02:38]} 11. Qa2 {[%clk 0:02:50]}  Nxd2 {[%clk 0:02:28]} 12. Kxd2 {[%clk 0:02:47]}  f4 {[%clk 0:02:29]} 13. exf4 {[%clk 0:02:41]}  Bxf4+ {[%clk 0:02:26]} 14. Ke2 {[%clk 0:02:38]}  Qf6 {[%clk 0:02:15]} 15. Qb1 {[%clk 0:02:35]}  h6 {[%clk 0:02:13]} 16. Bxf4 {[%clk 0:02:31]}  Qxf4 {[%clk 0:02:13]} 17. Qc1 {[%clk 0:02:30]}  Qf6 {[%clk 0:02:08]} 18. Qe3 {[%clk 0:02:28]}  c5 {[%clk 0:02:02]} 19. cxd5 {[%clk 0:02:23]}  exd5 {[%clk 0:02:00]} 20. Qe5 {[%clk 0:02:07]}  Qf7 {[%clk 0:01:49]} 21. Qg3 {[%clk 0:01:41]}  Nc6 {[%clk 0:01:45]} 22. dxc5 {[%clk 0:01:26]}  Bf5 {[%clk 0:01:37]} 23. Bxf5 {[%clk 0:01:01]}  Rae8+ {[%clk 0:01:36]} 24. Kd2 {[%clk 0:01:00]}  Qxf5 {[%clk 0:01:35]} 25. Rhe1 {[%clk 0:00:19]}  Na5 {[%clk 0:01:33]} 26. Rad1 {[%clk 0:00:17]}  Nc4+ {[%clk 0:01:25]} 27. Kc1 {[%clk 0:00:16]}  Qc8 {[%clk 0:01:07]} 28. Rxd5 {[%clk 0:00:12]}  Na5 {[%clk 0:00:58]} 29. Kb1 {[%clk 0:00:11]}  Nb3 {[%clk 0:00:51]} 30. Rde5 {[%clk 0:00:09]}  Rxe5 {[%clk 0:00:47]} 31. Rxe5 {[%clk 0:00:10]}  Qd7 {[%clk 0:00:44]} 32. Ka2 {[%clk 0:00:06]}  Nc1+ {[%clk 0:00:37]} 33. Kb1 {[%clk 0:00:06]}  Nb3 {[%clk 0:00:36]} 34. Ka2 {[%clk 0:00:05]}  Qd1 {[%clk 0:00:33]} 35. Re1 {[%clk 0:00:05]}  Qd5 {[%clk 0:00:32]} 36. Qe5 {[%clk 0:00:04]}  Qxe5 {[%clk 0:00:18]} 37. Rxe5 {[%clk 0:00:05]}  Rd8 {[%clk 0:00:18]} 38. Re1 {[%clk 0:00:05]}  Nxc5 {[%clk 0:00:18]} 39. h4 {[%clk 0:00:04]}  Nb3 {[%clk 0:00:18]} 40. Kb1 {[%clk 0:00:04]}  Rc8 {[%clk 0:00:19]} 41. Ka2 {[%clk 0:00:03]}  Rc2 {[%clk 0:00:19]} 42. Rf1 {[%clk 0:00:03]}  Re2 {[%clk 0:00:19]} 43. Kb1 {[%clk 0:00:03]}  b5 {[%clk 0:00:18]} 44. h5 {[%clk 0:00:03]}  Kf7 {[%clk 0:00:18]} 45. Ka2 {[%clk 0:00:03]}  Kf6 {[%clk 0:00:18]} 46. Kb1 {[%clk 0:00:03]}  Kf5 {[%clk 0:00:18]} 47. Rd1 {[%clk 0:00:02]}  Rxf2 {[%clk 0:00:17]} 48. Rd5+ {[%clk 0:00:03]}  Kg4 {[%clk 0:00:16]} 49. Rxb5 {[%clk 0:00:03]}  Rxg2 {[%clk 0:00:13]} 50. Ne5+ {[%clk 0:00:03]}  Kxh5 {[%clk 0:00:14]} 51. Nc4+ {[%clk 0:00:02]}  Kh4 {[%clk 0:00:13]} 52. Nb6 {[%clk 0:00:03]}  Rg1+ {[%clk 0:00:13]} 53. Kc2 {[%clk 0:00:03]}  Nd4+ {[%clk 0:00:14]} 54. Kd3 {[%clk 0:00:03]}  Nxb5 {[%clk 0:00:15]} 55. Nxa4 {[%clk 0:00:03]}  Nxa3 {[%clk 0:00:14]} 0-1

[Event "January 9 Early 2024"]
[Site "https://www.chess.com"]
[Date "2024.01.11"]
[Round "1"]
[White "Potkin, Vladimir"]
[Black "Carre, Sylvain"]
[Result "0-1"]
[Board "274"]
[TimeControl "180+1"]
[WhiteFideId "4131061"]
[BlackFideId "642118"]
[WhiteElo "2663"]
[BlackElo "2371"]
[WhiteTeam "RUS"]
[BlackTeam "FRA"]
[WhiteClock "0:00:12"]
[BlackClock "0:00:10"]

1. Nf3 {[%clk 0:03:00]}  d5 {[%clk 0:02:53]} 2. e3 {[%clk 0:03:01]}  Bf5 {[%clk 0:02:51]} 3. c4 {[%clk 0:03:01]}  c6 {[%clk 0:02:51]} 4. cxd5 {[%clk 0:02:59]}  cxd5 {[%clk 0:02:51]} 5. Qb3 {[%clk 0:02:59]}  Bc8 {[%clk 0:02:50]} 6. Nc3 {[%clk 0:02:59]}  e6 {[%clk 0:02:51]} 7. Bb5+ {[%clk 0:02:58]}  Bd7 {[%clk 0:02:50]} 8. d4 {[%clk 0:02:57]}  Nf6 {[%clk 0:02:37]} 9. Ne5 {[%clk 0:02:56]}  Nc6 {[%clk 0:02:28]} 10. Bd2 {[%clk 0:02:49]}  Nxe5 {[%clk 0:02:13]} 11. dxe5 {[%clk 0:02:49]}  Ng4 {[%clk 0:02:12]} 12. f4 {[%clk 0:02:33]}  Bc5 {[%clk 0:02:01]} 13. Na4 {[%clk 0:02:01]}  Bxe3 {[%clk 0:01:33]} 14. Bxe3 {[%clk 0:02:01]}  Nxe3 {[%clk 0:01:33]} 15. Nc5 {[%clk 0:01:44]}  Qa5+ {[%clk 0:01:23]} 16. Ke2 {[%clk 0:01:32]}  Bxb5+ {[%clk 0:01:20]} 17. Kxe3 {[%clk 0:01:31]}  O-O {[%clk 0:01:05]} 18. Rhd1 {[%clk 0:01:28]}  Bc4 {[%clk 0:00:57]} 19. Qa3 {[%clk 0:01:26]}  Qxa3+ {[%clk 0:00:45]} 20. bxa3 {[%clk 0:01:27]}  b6 {[%clk 0:00:42]} 21. Nb7 {[%clk 0:01:26]}  f6 {[%clk 0:00:36]} 22. Nd6 {[%clk 0:01:25]}  fxe5 {[%clk 0:00:35]} 23. fxe5 {[%clk 0:01:26]}  b5 {[%clk 0:00:28]} 24. a4 {[%clk 0:01:14]}  a6 {[%clk 0:00:28]} 25. a5 {[%clk 0:01:05]}  Rab8 {[%clk 0:00:28]} 26. a3 {[%clk 0:01:03]}  h6 {[%clk 0:00:24]} 27. Rab1 {[%clk 0:01:01]}  g5 {[%clk 0:00:23]} 28. Kd4 {[%clk 0:00:56]}  Rf4+ {[%clk 0:00:22]} 29. Kc5 {[%clk 0:00:56]}  Rf2 {[%clk 0:00:18]} 30. g4 {[%clk 0:00:55]}  Rxh2 {[%clk 0:00:18]} 31. Kc6 {[%clk 0:00:55]}  Rg2 {[%clk 0:00:17]} 32. Kc7 {[%clk 0:00:55]}  Rf8 {[%clk 0:00:18]} 33. Rd4 {[%clk 0:00:53]}  Rf4 {[%clk 0:00:17]} 34. Rbd1 {[%clk 0:00:51]}  Rgxg4 {[%clk 0:00:16]} 35. Rxf4 {[%clk 0:00:46]}  Rxf4 {[%clk 0:00:17]} 36. Kb7 {[%clk 0:00:46]}  h5 {[%clk 0:00:15]} 37. Kxa6 {[%clk 0:00:45]}  b4+ {[%clk 0:00:15]} 38. Nxc4 {[%clk 0:00:44]}  Rxc4 {[%clk 0:00:16]} 39. Kb5 {[%clk 0:00:33]}  bxa3 {[%clk 0:00:14]} 40. a6 {[%clk 0:00:34]}  Rc8 {[%clk 0:00:13]} 41. Kb6 {[%clk 0:00:32]}  Kg7 {[%clk 0:00:12]} 42. Kb7 {[%clk 0:00:31]}  Rh8 {[%clk 0:00:11]} 43. a7 {[%clk 0:00:28]}  h4 {[%clk 0:00:12]} 44. Rd3 {[%clk 0:00:28]}  Kg6 {[%clk 0:00:10]} 45. Rxa3 {[%clk 0:00:27]}  Rh7+ {[%clk 0:00:10]} 46. Kc6 {[%clk 0:00:26]}  Rxa7 {[%clk 0:00:10]} 47. Rxa7 {[%clk 0:00:27]}  g4 {[%clk 0:00:10]} 48. Kd6 {[%clk 0:00:27]}  h3 {[%clk 0:00:10]} 49. Ra2 {[%clk 0:00:16]}  Kg5 {[%clk 0:00:10]} 50. Kxe6 {[%clk 0:00:15]}  g3 {[%clk 0:00:11]} 51. Kxd5 {[%clk 0:00:15]}  h2 {[%clk 0:00:11]} 52. Ra1 {[%clk 0:00:14]}  g2 {[%clk 0:00:11]} 53. e6 {[%clk 0:00:15]}  h1=Q {[%clk 0:00:11]} 54. Ra4 {[%clk 0:00:12]}  g1=Q+ {[%clk 0:00:11]} 55. Kd6 {[%clk 0:00:13]}  Qhh2+ {[%clk 0:00:11]} 56. Kd7 {[%clk 0:00:13]}  Qd1+ {[%clk 0:00:11]} 57. Ke8 {[%clk 0:00:12]}  Qdd6 {[%clk 0:00:10]} 0-1

[Event "January 9 Early 2024"]
[Site "https://www.chess.com"]
[Date "2024.01.11"]
[Round "1"]
[White "Andreikin, Dmitry"]
[Black "Mortazavi, Ali"]
[Result "0-1"]
[Board "277"]
[TimeControl "180+1"]
[WhiteFideId "4158814"]
[BlackFideId "401323"]
[WhiteElo "3107"]
[BlackElo "2549"]
[WhiteTeam "FID"]
[BlackTeam "ENG"]
[WhiteClock "0:00:02"]
[BlackClock "0:00:14"]

1. d4 {[%clk 0:03:00]}  Nf6 {[%clk 0:02:59]} 2. c4 {[%clk 0:03:00]}  g6 {[%clk 0:03:00]} 3. Nc3 {[%clk 0:02:59]}  Bg7 {[%clk 0:03:01]} 4. e4 {[%clk 0:02:58]}  O-O {[%clk 0:03:02]} 5. h3 {[%clk 0:02:55]}  d6 {[%clk 0:03:02]} 6. Be3 {[%clk 0:02:55]}  c5 {[%clk 0:03:01]} 7. Nf3 {[%clk 0:02:54]}  Nc6 {[%clk 0:02:55]} 8. d5 {[%clk 0:02:54]}  Na5 {[%clk 0:02:55]} 9. Bd3 {[%clk 0:02:52]}  e5 {[%clk 0:02:50]} 10. O-O {[%clk 0:02:49]}  Nh5 {[%clk 0:02:50]} 11. a3 {[%clk 0:02:41]}  b6 {[%clk 0:02:50]} 12. b4 {[%clk 0:02:41]}  Nb7 {[%clk 0:02:51]} 13. Bc2 {[%clk 0:02:41]}  f5 {[%clk 0:02:40]} 14. Ba4 {[%clk 0:02:35]}  f4 {[%clk 0:02:29]} 15. Bd2 {[%clk 0:02:35]}  Rf7 {[%clk 0:02:10]} 16. Bc6 {[%clk 0:02:34]}  h6 {[%clk 0:02:03]} 17. bxc5 {[%clk 0:02:33]}  dxc5 {[%clk 0:01:58]} 18. a4 {[%clk 0:02:18]}  Rb8 {[%clk 0:01:58]} 19. Bxb7 {[%clk 0:02:16]}  Rbxb7 {[%clk 0:01:56]} 20. a5 {[%clk 0:02:16]}  bxa5 {[%clk 0:01:36]} 21. Nb5 {[%clk 0:02:09]}  g5 {[%clk 0:01:21]} 22. Bxa5 {[%clk 0:02:02]}  Qf6 {[%clk 0:01:14]} 23. Bc3 {[%clk 0:01:56]}  g4 {[%clk 0:01:03]} 24. Nxe5 {[%clk 0:01:51]}  f3 {[%clk 0:00:56]} 25. Nxf7 {[%clk 0:01:45]}  Qxf7 {[%clk 0:00:55]} 26. Nd6 {[%clk 0:01:27]}  Qg6 {[%clk 0:00:55]} 27. Nxc8 {[%clk 0:01:27]}  Bxc3 {[%clk 0:00:43]} 28. hxg4 {[%clk 0:01:26]}  fxg2 {[%clk 0:00:37]} 29. Re1 {[%clk 0:00:52]}  Nf4 {[%clk 0:00:24]} 30. Qf3 {[%clk 0:00:49]}  Qg5 {[%clk 0:00:25]} 31. Qg3 {[%clk 0:00:20]}  Bxa1 {[%clk 0:00:25]} 32. Nd6 {[%clk 0:00:20]}  Rb1 {[%clk 0:00:25]} 33. Rxb1 {[%clk 0:00:18]}  Ne2+ {[%clk 0:00:25]} 34. Kxg2 {[%clk 0:00:19]}  Nxg3 {[%clk 0:00:25]} 35. Rb8+ {[%clk 0:00:15]}  Kh7 {[%clk 0:00:25]} 36. Rb7+ {[%clk 0:00:15]}  Bg7 {[%clk 0:00:24]} 37. fxg3 {[%clk 0:00:16]}  Qxg4 {[%clk 0:00:22]} 38. Rxa7 {[%clk 0:00:13]}  Qe2+ {[%clk 0:00:21]} 39. Kh3 {[%clk 0:00:13]}  Qh5+ {[%clk 0:00:21]} 40. Kg2 {[%clk 0:00:14]}  Qe2+ {[%clk 0:00:21]} 41. Kh3 {[%clk 0:00:15]}  Qf1+ {[%clk 0:00:21]} 42. Kh2 {[%clk 0:00:14]}  Kg6 {[%clk 0:00:20]} 43. Nf5 {[%clk 0:00:12]}  Bd4 {[%clk 0:00:20]} 44. d6 {[%clk 0:00:04]}  Bg1+ {[%clk 0:00:19]} 45. Kh1 {[%clk 0:00:04]}  Be3+ {[%clk 0:00:18]} 46. Kh2 {[%clk 0:00:04]}  Bg1+ {[%clk 0:00:18]} 47. Kh1 {[%clk 0:00:05]}  Bf2+ {[%clk 0:00:15]} 48. Kh2 {[%clk 0:00:05]}  Qg1+ {[%clk 0:00:16]} 49. Kh3 {[%clk 0:00:06]}  Qh1+ {[%clk 0:00:16]} 50. Kg4 {[%clk 0:00:06]}  Qxe4+ {[%clk 0:00:16]} 51. Kh3 {[%clk 0:00:06]}  Qxf5+ {[%clk 0:00:16]} 52. Kg2 {[%clk 0:00:06]}  Bd4 {[%clk 0:00:16]} 53. d7 {[%clk 0:00:07]}  Qf2+ {[%clk 0:00:15]} 54. Kh3 {[%clk 0:00:07]}  Qf1+ {[%clk 0:00:16]} 55. Kh4 {[%clk 0:00:05]}  h5 {[%clk 0:00:14]} 56. Ra6+ {[%clk 0:00:04]}  Kf5 {[%clk 0:00:14]} 57. d8=Q {[%clk 0:00:02]}  Qh1# {[%clk 0:00:14]} 0-1

[Event "January 9 Early 2024"]
[Site "https://www.chess.com"]
[Date "2024.01.11"]
[Round "1"]
[White "Llorente Zaro, Alfonso"]
[Black "Mrithyunjay Mahadevan"]
[Result "0-1"]
[Board "278"]
[TimeControl "180+1"]
[WhiteFideId "2254131"]
[BlackFideId "45003521"]
[WhiteElo "2709"]
[BlackElo "2433"]
[WhiteTeam "ESP"]
[BlackTeam "IND"]
[WhiteClock "0:00:05"]
[BlackClock "0:00:19"]

1. c4 {[%clk 0:03:00]}  g6 {[%clk 0:02:56]} 2. Nc3 {[%clk 0:03:01]}  Bg7 {[%clk 0:02:56]} 3. Nf3 {[%clk 0:03:00]}  e5 {[%clk 0:02:53]} 4. d4 {[%clk 0:02:58]}  exd4 {[%clk 0:02:52]} 5. Nxd4 {[%clk 0:02:58]}  Nc6 {[%clk 0:02:52]} 6. Nxc6 {[%clk 0:02:58]}  dxc6 {[%clk 0:02:53]} 7. Qxd8+ {[%clk 0:02:57]}  Kxd8 {[%clk 0:02:53]} 8. Bd2 {[%clk 0:02:56]}  Be6 {[%clk 0:02:53]} 9. e3 {[%clk 0:02:55]}  Ne7 {[%clk 0:02:52]} 10. Be2 {[%clk 0:02:55]}  Nf5 {[%clk 0:02:52]} 11. O-O-O {[%clk 0:02:55]}  Ke7 {[%clk 0:02:50]} 12. g3 {[%clk 0:02:53]}  Nd6 {[%clk 0:02:50]} 13. b3 {[%clk 0:02:52]}  a6 {[%clk 0:02:50]} 14. Kc2 {[%clk 0:02:51]}  b5 {[%clk 0:02:49]} 15. c5 {[%clk 0:02:42]}  Nb7 {[%clk 0:02:47]} 16. Ne4 {[%clk 0:02:41]}  Bf5 {[%clk 0:02:40]} 17. Bd3 {[%clk 0:02:41]}  Rad8 {[%clk 0:02:40]} 18. f3 {[%clk 0:02:37]}  Rd5 {[%clk 0:02:13]} 19. b4 {[%clk 0:02:08]}  Rhd8 {[%clk 0:02:12]} 20. Bc1 {[%clk 0:01:56]}  h5 {[%clk 0:02:01]} 21. h3 {[%clk 0:01:53]}  a5 {[%clk 0:01:58]} 22. a3 {[%clk 0:01:53]}  axb4 {[%clk 0:01:46]} 23. axb4 {[%clk 0:01:54]}  Be6 {[%clk 0:01:45]} 24. Nc3 {[%clk 0:01:38]}  R5d7 {[%clk 0:01:38]} 25. Be4 {[%clk 0:01:37]}  Rxd1 {[%clk 0:01:03]} 26. Nxd1 {[%clk 0:01:22]}  Bd5 {[%clk 0:00:59]} 27. Nf2 {[%clk 0:01:13]}  f5 {[%clk 0:00:58]} 28. Bxd5 {[%clk 0:01:13]}  cxd5 {[%clk 0:00:59]} 29. h4 {[%clk 0:01:06]}  Ra8 {[%clk 0:00:58]} 30. Kb3 {[%clk 0:01:02]}  Nd8 {[%clk 0:00:56]} 31. Nd3 {[%clk 0:01:02]}  Nc6 {[%clk 0:00:52]} 32. Bb2 {[%clk 0:00:54]}  Bxb2 {[%clk 0:00:50]} 33. Kxb2 {[%clk 0:00:55]}  Kf6 {[%clk 0:00:48]} 34. Kb3 {[%clk 0:00:47]}  Ne5 {[%clk 0:00:47]} 35. Nf4 {[%clk 0:00:45]}  c6 {[%clk 0:00:46]} 36. Ne2 {[%clk 0:00:31]}  Nxf3 {[%clk 0:00:45]} 37. Rd1 {[%clk 0:00:26]}  Re8 {[%clk 0:00:44]} 38. Rd3 {[%clk 0:00:26]}  Re4 {[%clk 0:00:42]} 39. Kc3 {[%clk 0:00:21]}  Ne5 {[%clk 0:00:35]} 40. Nd4 {[%clk 0:00:16]}  Nxd3 {[%clk 0:00:33]} 41. Kxd3 {[%clk 0:00:17]}  Re6 {[%clk 0:00:18]} 42. Ke2 {[%clk 0:00:16]}  Ke5 {[%clk 0:00:17]} 43. Nf3+ {[%clk 0:00:13]}  Kf6 {[%clk 0:00:17]} 44. Nd4 {[%clk 0:00:13]}  Ke7 {[%clk 0:00:17]} 45. Kf3 {[%clk 0:00:10]}  Rf6 {[%clk 0:00:17]} 46. Kf4 {[%clk 0:00:11]}  Kf7 {[%clk 0:00:17]} 47. Ke5 {[%clk 0:00:11]}  Ke7 {[%clk 0:00:17]} 48. Kf4 {[%clk 0:00:09]}  Re6 {[%clk 0:00:17]} 49. Nxe6 {[%clk 0:00:06]}  Kxe6 {[%clk 0:00:18]} 50. Kg5 {[%clk 0:00:07]}  Kf7 {[%clk 0:00:18]} 51. Kh6 {[%clk 0:00:06]}  Kf6 {[%clk 0:00:18]} 52. Kh7 {[%clk 0:00:06]}  g5 {[%clk 0:00:18]} 53. Kh6 {[%clk 0:00:05]}  gxh4 {[%clk 0:00:19]} 54. gxh4 {[%clk 0:00:05]}  f4 {[%clk 0:00:19]} 0-1

[Event "January 9 Early 2024"]
[Site "https://www.chess.com"]
[Date "2024.01.11"]
[Round "1"]
[White "Zheenbekov, Nurgazy"]
[Black "Finek, Vaclav"]
[Result "0-1"]
[Board "279"]
[TimeControl "180+1"]
[WhiteFideId "13800485"]
[BlackFideId "23718293"]
[WhiteElo "2446"]
[BlackElo "2826"]
[WhiteTeam "KGZ"]
[BlackTeam "CZE"]
[WhiteClock "0:00:01"]
[BlackClock "0:00:10"]

1. d4 {[%clk 0:02:59]}  d5 {[%clk 0:02:58]} 2. Nf3 {[%clk 0:02:58]}  Nf6 {[%clk 0:02:56]} 3. c4 {[%clk 0:02:58]}  c6 {[%clk 0:02:45]} 4. e3 {[%clk 0:02:54]}  e6 {[%clk 0:02:33]} 5. Qc2 {[%clk 0:02:51]}  Nbd7 {[%clk 0:02:32]} 6. Nc3 {[%clk 0:02:44]}  Bd6 {[%clk 0:02:30]} 7. a4 {[%clk 0:02:39]}  O-O {[%clk 0:02:26]} 8. Bd3 {[%clk 0:02:34]}  dxc4 {[%clk 0:02:25]} 9. Bxc4 {[%clk 0:02:34]}  b6 {[%clk 0:02:24]} 10. O-O {[%clk 0:02:32]}  Bb7 {[%clk 0:02:23]} 11. Rd1 {[%clk 0:02:32]}  Qe7 {[%clk 0:02:20]} 12. e4 {[%clk 0:02:18]}  e5 {[%clk 0:02:20]} 13. Bg5 {[%clk 0:02:01]}  h6 {[%clk 0:02:17]} 14. Bh4 {[%clk 0:02:00]}  c5 {[%clk 0:02:09]} 15. d5 {[%clk 0:01:58]}  Rfe8 {[%clk 0:02:08]} 16. Bg3 {[%clk 0:01:51]}  a6 {[%clk 0:02:03]} 17. Nh4 {[%clk 0:01:36]}  g6 {[%clk 0:02:03]} 18. Qd2 {[%clk 0:01:36]}  Kg7 {[%clk 0:01:57]} 19. Rf1 {[%clk 0:01:31]}  Rad8 {[%clk 0:01:45]} 20. Rae1 {[%clk 0:01:30]}  Nh5 {[%clk 0:01:43]} 21. Nd1 {[%clk 0:01:28]}  Kh7 {[%clk 0:01:38]} 22. Ne3 {[%clk 0:01:21]}  Ndf6 {[%clk 0:01:35]} 23. Qd3 {[%clk 0:01:19]}  Ra8 {[%clk 0:01:29]} 24. Qd2 {[%clk 0:01:02]}  Qd7 {[%clk 0:01:24]} 25. Qc2 {[%clk 0:01:01]}  b5 {[%clk 0:01:23]} 26. Be2 {[%clk 0:00:58]}  c4 {[%clk 0:01:18]} 27. Bxh5 {[%clk 0:00:40]}  Nxh5 {[%clk 0:01:15]} 28. Qc1 {[%clk 0:00:40]}  Nf4 {[%clk 0:00:55]} 29. h3 {[%clk 0:00:32]}  h5 {[%clk 0:00:48]} 30. Nf3 {[%clk 0:00:31]}  Nd3 {[%clk 0:00:45]} 31. Qd2 {[%clk 0:00:29]}  Bb4 {[%clk 0:00:44]} 32. Qd1 {[%clk 0:00:27]}  Bxe1 {[%clk 0:00:37]} 33. Nxe1 {[%clk 0:00:26]}  Nxe1 {[%clk 0:00:32]} 34. Qxe1 {[%clk 0:00:25]}  f6 {[%clk 0:00:24]} 35. Bh2 {[%clk 0:00:19]}  Kg7 {[%clk 0:00:18]} 36. Qd2 {[%clk 0:00:18]}  Rac8 {[%clk 0:00:17]} 37. Nc2 {[%clk 0:00:18]}  Qd6 {[%clk 0:00:17]} 38. f4 {[%clk 0:00:16]}  exf4 {[%clk 0:00:16]} 39. Bxf4 {[%clk 0:00:16]}  Qc5+ {[%clk 0:00:17]} 40. Be3 {[%clk 0:00:16]}  Qe7 {[%clk 0:00:17]} 41. Bd4 {[%clk 0:00:16]}  Rf8 {[%clk 0:00:17]} 42. Bc3 {[%clk 0:00:11]}  Qxe4 {[%clk 0:00:11]} 43. d6 {[%clk 0:00:09]}  Qd5 {[%clk 0:00:11]} 44. Nd4 {[%clk 0:00:09]}  Rcd8 {[%clk 0:00:10]} 45. Re1 {[%clk 0:00:08]}  Rxd6 {[%clk 0:00:09]} 46. Re7+ {[%clk 0:00:08]}  Rf7 {[%clk 0:00:10]} 47. Rxf7+ {[%clk 0:00:04]}  Kxf7 {[%clk 0:00:11]} 48. Qe2 {[%clk 0:00:03]}  Qe4 {[%clk 0:00:10]} 49. Qf2 {[%clk 0:00:02]}  b4 {[%clk 0:00:10]} 50. Bxb4 {[%clk 0:00:01]}  Rxd4 {[%clk 0:00:10]} 0-1

[Event "January 9 Early 2024"]
[Site "https://www.chess.com"]
[Date "2024.01.11"]
[Round "1"]
[White "Yeremyan, Alen"]
[Black "Goncalves, Samuel Jesus P"]
[Result "1-0"]
[Board "284"]
[TimeControl "180+1"]
[WhiteFideId "13308998"]
[BlackFideId "1945130"]
[WhiteElo "2769"]
[BlackElo "2427"]
[WhiteTeam "ARM"]
[BlackTeam "POR"]
[WhiteClock "0:00:16"]
[BlackClock "0:00:13"]

1. e4 {[%clk 0:03:00]}  d5 {[%clk 0:02:59]} 2. exd5 {[%clk 0:03:00]}  Qxd5 {[%clk 0:03:00]} 3. Nc3 {[%clk 0:03:01]}  Qa5 {[%clk 0:03:01]} 4. Bc4 {[%clk 0:03:02]}  Nf6 {[%clk 0:02:59]} 5. d3 {[%clk 0:03:02]}  Bg4 {[%clk 0:02:56]} 6. f3 {[%clk 0:03:01]}  Bd7 {[%clk 0:02:56]} 7. Ne2 {[%clk 0:03:02]}  e6 {[%clk 0:02:56]} 8. O-O {[%clk 0:03:02]}  Nc6 {[%clk 0:02:52]} 9. Kh1 {[%clk 0:03:02]}  O-O-O {[%clk 0:02:52]} 10. a3 {[%clk 0:03:01]}  Qh5 {[%clk 0:02:46]} 11. Be3 {[%clk 0:03:00]}  g5 {[%clk 0:02:36]} 12. b4 {[%clk 0:02:58]}  Bd6 {[%clk 0:02:10]} 13. Bg1 {[%clk 0:02:54]}  Ne5 {[%clk 0:02:09]} 14. Bb3 {[%clk 0:02:45]}  g4 {[%clk 0:01:38]} 15. Ng3 {[%clk 0:02:43]}  Qh4 {[%clk 0:01:34]} 16. f4 {[%clk 0:02:43]}  Ng6 {[%clk 0:01:30]} 17. Nce2 {[%clk 0:02:34]}  Bc6 {[%clk 0:01:20]} 18. Qe1 {[%clk 0:01:06]}  Rhe8 {[%clk 0:01:04]} 19. Be3 {[%clk 0:01:00]}  e5 {[%clk 0:01:01]} 20. Nf5 {[%clk 0:00:51]}  Qxe1 {[%clk 0:00:53]} 21. Nxd6+ {[%clk 0:00:51]}  cxd6 {[%clk 0:00:48]} 22. Raxe1 {[%clk 0:00:51]}  Nd5 {[%clk 0:00:33]} 23. Bxd5 {[%clk 0:00:40]}  Bxd5 {[%clk 0:00:34]} 24. Nc3 {[%clk 0:00:40]}  Bc6 {[%clk 0:00:33]} 25. b5 {[%clk 0:00:40]}  exf4 {[%clk 0:00:28]} 26. Bxf4 {[%clk 0:00:34]}  Rxe1 {[%clk 0:00:26]} 27. Rxe1 {[%clk 0:00:34]}  Nxf4 {[%clk 0:00:26]} 28. bxc6 {[%clk 0:00:33]}  bxc6 {[%clk 0:00:26]} 29. Rf1 {[%clk 0:00:34]}  Re8 {[%clk 0:00:25]} 30. g3 {[%clk 0:00:35]}  Ne2 {[%clk 0:00:23]} 31. Ne4 {[%clk 0:00:35]}  Re6 {[%clk 0:00:20]} 32. Rxf7 {[%clk 0:00:34]}  Nd4 {[%clk 0:00:20]} 33. Rxh7 {[%clk 0:00:25]}  d5 {[%clk 0:00:20]} 34. Nc5 {[%clk 0:00:21]}  Re2 {[%clk 0:00:20]} 35. h3 {[%clk 0:00:19]}  Nf3 {[%clk 0:00:18]} 36. hxg4 {[%clk 0:00:18]}  Rxc2 {[%clk 0:00:18]} 37. Ne6 {[%clk 0:00:17]}  Ra2 {[%clk 0:00:18]} 38. g5 {[%clk 0:00:18]}  Nxg5 {[%clk 0:00:14]} 39. Nxg5 {[%clk 0:00:18]}  Rxa3 {[%clk 0:00:15]} 40. Ne6 {[%clk 0:00:17]}  Rxd3 {[%clk 0:00:15]} 41. g4 {[%clk 0:00:18]}  Rg3 {[%clk 0:00:15]} 42. g5 {[%clk 0:00:18]}  a5 {[%clk 0:00:15]} 43. Ra7 {[%clk 0:00:18]}  a4 {[%clk 0:00:14]} 44. Kh2 {[%clk 0:00:19]}  Rg4 {[%clk 0:00:14]} 45. Kh3 {[%clk 0:00:19]}  Rg1 {[%clk 0:00:14]} 46. Rxa4 {[%clk 0:00:19]}  Kd7 {[%clk 0:00:14]} 47. Nf8+ {[%clk 0:00:13]}  Ke7 {[%clk 0:00:14]} 48. Ng6+ {[%clk 0:00:14]}  Kf7 {[%clk 0:00:13]} 49. Ne5+ {[%clk 0:00:14]}  Ke6 {[%clk 0:00:14]} 50. Nf3 {[%clk 0:00:15]}  Rf1 {[%clk 0:00:14]} 51. Kg2 {[%clk 0:00:15]}  Rb1 {[%clk 0:00:13]} 52. Ra6 {[%clk 0:00:14]}  Rc1 {[%clk 0:00:12]} 53. Kg3 {[%clk 0:00:13]}  Kf5 {[%clk 0:00:13]} 54. Ra8 {[%clk 0:00:12]}  Rc3 {[%clk 0:00:12]} 55. Rf8+ {[%clk 0:00:13]}  Kg6 {[%clk 0:00:13]} 56. Rf6+ {[%clk 0:00:13]}  Kg7 {[%clk 0:00:13]} 57. Kg4 {[%clk 0:00:13]}  c5 {[%clk 0:00:13]} 58. Nh4 {[%clk 0:00:13]}  d4 {[%clk 0:00:13]} 59. Nf5+ {[%clk 0:00:14]}  Kg8 {[%clk 0:00:14]} 60. g6 {[%clk 0:00:14]}  Rc1 {[%clk 0:00:14]} 61. Rd6 {[%clk 0:00:14]}  Rg1+ {[%clk 0:00:13]} 62. Kh5 {[%clk 0:00:15]}  Rh1+ {[%clk 0:00:13]} 63. Kg5 {[%clk 0:00:15]}  Rg1+ {[%clk 0:00:13]} 64. Kf6 {[%clk 0:00:16]} 1-0